[Event "Late-Titled-Tuesday-Blitz-February-06-2024"]
[Site "Chess.com"]
[Date "2024.02.06"]
[Round "7"]
[White "Quattroporte300"]
[Black "Nf3c5"]
[Result "1/2-1/2"]
[WhiteElo "2392"]
[BlackElo "2560"]
[TimeControl "180+1"]
[EndTime "15:17:50 PST"]
[Termination "Game drawn by repetition"]

1. e4 {[%clk 0:03:00.9]} 1... c5 {[%clk 0:02:57.8]} 2. Nc3 {[%clk 0:02:59.9]}
2... e6 {[%clk 0:02:56.3]} 3. g3 {[%clk 0:02:58.2]} 3... Nc6 {[%clk 0:02:55.6]}
4. Bg2 {[%clk 0:02:58.6]} 4... Nf6 {[%clk 0:02:56.1]} 5. Nge2 {[%clk 0:02:59.2]}
5... d5 {[%clk 0:02:56.6]} 6. exd5 {[%clk 0:02:58.4]} 6... exd5 {[%clk
0:02:56.8]} 7. d4 {[%clk 0:02:57.6]} 7... cxd4 {[%clk 0:02:52.2]} 8. Nxd4 {[%clk
0:02:57.4]} 8... Bc5 {[%clk 0:02:52.5]} 9. Qe2+ {[%clk 0:02:42.4]} 9... Kf8
{[%clk 0:02:29.2]} 10. Nb3 {[%clk 0:02:39.8]} 10... Bb4 {[%clk 0:02:16.5]} 11.
O-O {[%clk 0:02:39.2]} 11... d4 {[%clk 0:01:39.8]} 12. a3 {[%clk 0:02:10.1]}
12... Be7 {[%clk 0:01:26.1]} 13. Ne4 {[%clk 0:01:54.6]} 13... Bg4 {[%clk
0:01:19.9]} 14. f3 {[%clk 0:01:53.5]} 14... Be6 {[%clk 0:01:18.4]} 15. Nbc5
{[%clk 0:01:41]} 15... Bd5 {[%clk 0:01:13.7]} 16. Bf4 {[%clk 0:01:30.9]} 16...
b6 {[%clk 0:01:03.8]} 17. Nd3 {[%clk 0:01:19.1]} 17... h6 {[%clk 0:01:03.1]} 18.
Rfe1 {[%clk 0:01:17.9]} 18... Rc8 {[%clk 0:01:01.7]} 19. Rad1 {[%clk 0:01:08.7]}
19... g5 {[%clk 0:01:01.3]} 20. Nxf6 {[%clk 0:00:36.2]} 20... Bxf6 {[%clk
0:00:56.4]} 21. Be5 {[%clk 0:00:36.4]} 21... Nxe5 {[%clk 0:00:56.1]} 22. Nxe5
{[%clk 0:00:36.6]} 22... Qc7 {[%clk 0:00:54.3]} 23. Rxd4 {[%clk 0:00:34.3]}
23... Be6 {[%clk 0:00:43.9]} 24. c3 {[%clk 0:00:33.4]} 24... Kg7 {[%clk
0:00:43.1]} 25. Rdd1 {[%clk 0:00:30.5]} 25... Rhd8 {[%clk 0:00:43]} 26. Ng4
{[%clk 0:00:23.7]} 26... Qc5+ {[%clk 0:00:28.1]} 27. Qf2 {[%clk 0:00:23.5]}
27... Qxf2+ {[%clk 0:00:24.2]} 28. Nxf2 {[%clk 0:00:22.9]} 28... Bb3 {[%clk
0:00:24.3]} 29. Rd3 {[%clk 0:00:18.6]} 29... Bc2 {[%clk 0:00:22.3]} 30. Rxd8
{[%clk 0:00:14.8]} 30... Rxd8 {[%clk 0:00:23.2]} 31. Ne4 {[%clk 0:00:14.8]}
31... Bxe4 {[%clk 0:00:20.5]} 32. fxe4 {[%clk 0:00:14.5]} 32... Rd2 {[%clk
0:00:21.1]} 33. e5 {[%clk 0:00:13.6]} 33... Be7 {[%clk 0:00:21.3]} 34. b4 {[%clk
0:00:12.7]} 34... Ra2 {[%clk 0:00:20.9]} 35. Bd5 {[%clk 0:00:11.2]} 35... Rxa3
{[%clk 0:00:20.9]} 36. Re3 {[%clk 0:00:10.9]} 36... Bxb4 {[%clk 0:00:19.8]} 37.
Rf3 {[%clk 0:00:11.3]} 37... Bc5+ {[%clk 0:00:20]} 38. Kf1 {[%clk 0:00:11.8]}
38... Ra1+ {[%clk 0:00:18.5]} 39. Ke2 {[%clk 0:00:10.8]} 39... Rh1 {[%clk
0:00:17.4]} 40. Rxf7+ {[%clk 0:00:10.1]} 40... Kg6 {[%clk 0:00:18]} 41. Rf6+
{[%clk 0:00:07.7]} 41... Kg7 {[%clk 0:00:15.9]} 42. Rf7+ {[%clk 0:00:07.7]}
42... Kg6 {[%clk 0:00:16]} 43. Rf6+ {[%clk 0:00:08.2]} 43... Kg7 {[%clk
0:00:16.4]} 44. Rf7+ {[%clk 0:00:08.5]} 1/2-1/2

[Event "Late-Titled-Tuesday-Blitz-February-06-2024"]
[Site "Chess.com"]
[Date "2024.02.06"]
[Round "7"]
[White "picturesquecheck"]
[Black "ChEsper99"]
[Result "0-1"]
[WhiteElo "2382"]
[BlackElo "2252"]
[TimeControl "180+1"]
[EndTime "15:17:50 PST"]
[Termination "ChEsper99 won by resignation"]

1. Nf3 {[%clk 0:03:00.9]} 1... c5 {[%clk 0:02:58.9]} 2. e4 {[%clk 0:03:00.3]}
2... d6 {[%clk 0:02:58.9]} 3. d4 {[%clk 0:03:00.3]} 3... cxd4 {[%clk 0:02:59.4]}
4. Nxd4 {[%clk 0:03:01.2]} 4... Nf6 {[%clk 0:02:59.9]} 5. Nc3 {[%clk 0:03:01.7]}
5... a6 {[%clk 0:03:00.5]} 6. Rg1 {[%clk 0:03:02.2]} 6... e5 {[%clk 0:02:56]} 7.
Nb3 {[%clk 0:03:00.4]} 7... Be6 {[%clk 0:02:56.5]} 8. g4 {[%clk 0:03:00.1]} 8...
d5 {[%clk 0:02:57.1]} 9. exd5 {[%clk 0:03:00.4]} 9... Nxd5 {[%clk 0:02:58]} 10.
Nxd5 {[%clk 0:03:00.5]} 10... Qxd5 {[%clk 0:02:57.6]} 11. Qxd5 {[%clk
0:02:59.7]} 11... Bxd5 {[%clk 0:02:58.5]} 12. Be3 {[%clk 0:02:59.9]} 12... Nc6
{[%clk 0:01:59.6]} 13. c3 {[%clk 0:02:54.4]} 13... O-O-O {[%clk 0:01:57.6]} 14.
Nd2 {[%clk 0:02:53.3]} 14... Be7 {[%clk 0:01:49.2]} 15. a4 {[%clk 0:02:52.7]}
15... g6 {[%clk 0:01:42.3]} 16. Nc4 {[%clk 0:02:52.1]} 16... Kb8 {[%clk
0:01:40.6]} 17. Nb6 {[%clk 0:02:40.8]} 17... Be6 {[%clk 0:01:39.6]} 18. g5
{[%clk 0:02:35.3]} 18... f6 {[%clk 0:01:27]} 19. gxf6 {[%clk 0:02:33.6]} 19...
Bxf6 {[%clk 0:01:27.9]} 20. Bc4 {[%clk 0:02:29.1]} 20... Bxc4 {[%clk 0:01:27.4]}
21. Nxc4 {[%clk 0:02:30]} 21... e4 {[%clk 0:01:21.4]} 22. Ke2 {[%clk 0:02:27.3]}
22... Ne5 {[%clk 0:01:21]} 23. Nxe5 {[%clk 0:02:25.1]} 23... Bxe5 {[%clk
0:01:21.9]} 24. h3 {[%clk 0:02:23.5]} 24... Rhe8 {[%clk 0:01:10]} 25. Rad1
{[%clk 0:02:22.2]} 25... Rxd1 {[%clk 0:01:08.2]} 26. Rxd1 {[%clk 0:02:21]} 26...
Kc7 {[%clk 0:01:09.1]} 27. Rd5 {[%clk 0:02:14.8]} 27... Kc6 {[%clk 0:01:06.6]}
28. Rc5+ {[%clk 0:02:09.8]} 28... Kd6 {[%clk 0:01:06.9]} 29. Rc4 {[%clk
0:02:08.8]} 29... Bg7 {[%clk 0:00:54.6]} 30. Rb4 {[%clk 0:02:06.2]} 30... Re7
{[%clk 0:00:52.4]} 31. Rb6+ {[%clk 0:01:59.4]} 31... Ke5 {[%clk 0:00:49.6]} 32.
Bc5 {[%clk 0:01:50.4]} 32... Rd7 {[%clk 0:00:46.4]} 33. b4 {[%clk 0:01:27.1]}
33... Kf5 {[%clk 0:00:45.7]} 34. c4 {[%clk 0:01:21.3]} 34... Bc3 {[%clk
0:00:35.9]} 35. Rd6 {[%clk 0:01:13]} 35... Rxd6 {[%clk 0:00:29.9]} 36. Bxd6
{[%clk 0:01:13.9]} 36... Bd4 {[%clk 0:00:27.5]} 37. b5 {[%clk 0:01:10.1]} 37...
axb5 {[%clk 0:00:26.3]} 38. cxb5 {[%clk 0:01:10.7]} 38... g5 {[%clk 0:00:24.5]}
39. a5 {[%clk 0:01:10.7]} 39... h5 {[%clk 0:00:18.5]} 40. a6 {[%clk 0:01:10.6]}
40... bxa6 {[%clk 0:00:16.9]} 41. bxa6 {[%clk 0:01:11.5]} 41... Ba7 {[%clk
0:00:17]} 42. Bc7 {[%clk 0:01:05.9]} 42... g4 {[%clk 0:00:16.8]} 43. hxg4+
{[%clk 0:01:05.7]} 43... Kxg4 {[%clk 0:00:17.1]} 44. Be5 {[%clk 0:00:59.1]}
44... h4 {[%clk 0:00:16.8]} 45. Kf1 {[%clk 0:00:55.9]} 45... Kf3 {[%clk
0:00:15.3]} 46. Bf6 {[%clk 0:00:49.9]} 46... h3 {[%clk 0:00:15]} 47. Be5 {[%clk
0:00:43.4]} 47... Bxf2 {[%clk 0:00:15.2]} 48. Bb8 {[%clk 0:00:30]} 48... e3
{[%clk 0:00:14.9]} 0-1

[Event "Late-Titled-Tuesday-Blitz-February-06-2024"]
[Site "Chess.com"]
[Date "2024.02.06"]
[Round "7"]
[White "Cronos97"]
[Black "Jahonas"]
[Result "1/2-1/2"]
[WhiteElo "2207"]
[BlackElo "2369"]
[TimeControl "180+1"]
[EndTime "15:17:53 PST"]
[Termination "Game drawn by repetition"]

1. Nf3 {[%clk 0:03:00.9]} 1... d5 {[%clk 0:02:59.9]} 2. c4 {[%clk 0:03:00.4]}
2... Nf6 {[%clk 0:03:00]} 3. cxd5 {[%clk 0:03:00.2]} 3... Nxd5 {[%clk
0:02:59.9]} 4. g3 {[%clk 0:03:00.8]} 4... c6 {[%clk 0:03:00.1]} 5. Bg2 {[%clk
0:03:01.1]} 5... g6 {[%clk 0:03:00.6]} 6. O-O {[%clk 0:03:01.8]} 6... Bg7 {[%clk
0:03:01]} 7. Nc3 {[%clk 0:03:01.5]} 7... Nxc3 {[%clk 0:03:01]} 8. bxc3 {[%clk
0:03:02.3]} 8... O-O {[%clk 0:03:01.1]} 9. Rb1 {[%clk 0:03:02.1]} 9... b6 {[%clk
0:03:01.2]} 10. d4 {[%clk 0:03:00.9]} 10... Ba6 {[%clk 0:02:58.5]} 11. Qc2
{[%clk 0:02:55.2]} 11... Nd7 {[%clk 0:02:54.4]} 12. Rd1 {[%clk 0:02:55]} 12...
Rc8 {[%clk 0:02:53.2]} 13. a4 {[%clk 0:02:52.6]} 13... e6 {[%clk 0:02:24.4]} 14.
e4 {[%clk 0:02:48.1]} 14... Qe7 {[%clk 0:02:21.4]} 15. e5 {[%clk 0:02:44.9]}
15... Rfd8 {[%clk 0:02:14.2]} 16. Bg5 {[%clk 0:02:44.8]} 16... f6 {[%clk
0:02:06.9]} 17. exf6 {[%clk 0:02:42.6]} 17... Bxf6 {[%clk 0:02:06.9]} 18. Bf4
{[%clk 0:02:42.1]} 18... c5 {[%clk 0:02:02.8]} 19. d5 {[%clk 0:02:36.4]} 19...
exd5 {[%clk 0:01:58.7]} 20. Rxd5 {[%clk 0:02:34.6]} 20... Bc4 {[%clk 0:01:55.7]}
21. Re1 {[%clk 0:02:31.9]} 21... Qf7 {[%clk 0:01:53.3]} 22. Rd2 {[%clk
0:02:27.3]} 22... Nf8 {[%clk 0:01:51.2]} 23. Rxd8 {[%clk 0:02:26.5]} 23... Rxd8
{[%clk 0:01:50.7]} 24. h4 {[%clk 0:02:26.6]} 24... Ne6 {[%clk 0:01:37.2]} 25.
Be3 {[%clk 0:02:20]} 25... Qg7 {[%clk 0:01:31.8]} 26. Rc1 {[%clk 0:02:05.3]}
26... Qd7 {[%clk 0:01:25.2]} 27. a5 {[%clk 0:02:03.4]} 27... Qd3 {[%clk
0:01:23.7]} 28. axb6 {[%clk 0:01:53.3]} 28... Qxc2 {[%clk 0:01:21.7]} 29. Rxc2
{[%clk 0:01:53.8]} 29... Rd1+ {[%clk 0:01:21.8]} 30. Kh2 {[%clk 0:01:53.8]}
30... axb6 {[%clk 0:01:18.7]} 31. Bh3 {[%clk 0:01:52.9]} 31... Kf7 {[%clk
0:01:17.1]} 32. Nd2 {[%clk 0:01:47.6]} 32... Bd5 {[%clk 0:01:12.9]} 33. Bg2
{[%clk 0:01:47.4]} 33... Bxg2 {[%clk 0:01:11.2]} 34. Kxg2 {[%clk 0:01:48.3]}
34... Nc7 {[%clk 0:01:06.9]} 35. Kf3 {[%clk 0:01:45]} 35... Nd5 {[%clk
0:01:05.3]} 36. Ke2 {[%clk 0:01:41.3]} 36... Nxe3 {[%clk 0:01:04.7]} 37. Kxe3
{[%clk 0:01:37]} 37... Ra1 {[%clk 0:00:59.2]} 38. Ne4 {[%clk 0:01:36]} 38... Be7
{[%clk 0:00:53.7]} 39. c4 {[%clk 0:01:34.7]} 39... Ra3+ {[%clk 0:00:50.3]} 40.
Kf4 {[%clk 0:01:32.9]} 40... Ke6 {[%clk 0:00:45.5]} 41. Nc3 {[%clk 0:01:28.6]}
41... h6 {[%clk 0:00:38.9]} 42. Nd5 {[%clk 0:01:23.6]} 42... Bd6+ {[%clk
0:00:37.1]} 43. Ke4 {[%clk 0:01:20.6]} 43... b5 {[%clk 0:00:20.6]} 44. Ne3
{[%clk 0:01:06.5]} 44... b4 {[%clk 0:00:20.2]} 45. Rd2 {[%clk 0:01:05]} 45...
Be5 {[%clk 0:00:19.9]} 46. Rd5 {[%clk 0:01:01.9]} 46... Bd4 {[%clk 0:00:19.5]}
47. h5 {[%clk 0:00:57.1]} 47... gxh5 {[%clk 0:00:19.3]} 48. Rxh5 {[%clk
0:00:56.3]} 48... Bxe3 {[%clk 0:00:19.7]} 49. fxe3 {[%clk 0:00:56.2]} 49... b3
{[%clk 0:00:20.2]} 50. Rxc5 {[%clk 0:00:56.1]} 50... Ra4 {[%clk 0:00:16.5]} 51.
Rb5 {[%clk 0:00:56.1]} 51... Rxc4+ {[%clk 0:00:16.7]} 52. Kd3 {[%clk 0:00:56.5]}
52... Rg4 {[%clk 0:00:16.8]} 53. Rxb3 {[%clk 0:00:54.2]} 53... Rxg3 {[%clk
0:00:17]} 54. Rb6+ {[%clk 0:00:55.1]} 54... Ke5 {[%clk 0:00:16.6]} 55. Rxh6
{[%clk 0:00:56]} 55... Rg1 {[%clk 0:00:16]} 56. Rh5+ {[%clk 0:00:56.4]} 56...
Ke6 {[%clk 0:00:16]} 57. Kd4 {[%clk 0:00:55.7]} 57... Rd1+ {[%clk 0:00:15.8]}
58. Ke4 {[%clk 0:00:55.9]} 58... Ra1 {[%clk 0:00:16.5]} 59. Rh6+ {[%clk
0:00:56.2]} 59... Ke7 {[%clk 0:00:16.7]} 60. Kf4 {[%clk 0:00:56.3]} 60... Ra4+
{[%clk 0:00:16.7]} 61. e4 {[%clk 0:00:56.6]} 61... Ra5 {[%clk 0:00:17.3]} 62.
Rb6 {[%clk 0:00:55.7]} 62... Rc5 {[%clk 0:00:16.9]} 63. e5 {[%clk 0:00:55.8]}
63... Rc1 {[%clk 0:00:16.7]} 64. Kf5 {[%clk 0:00:52.9]} 64... Rf1+ {[%clk
0:00:16.7]} 65. Ke4 {[%clk 0:00:53.3]} 65... Re1+ {[%clk 0:00:17.2]} 66. Kd4
{[%clk 0:00:53.7]} 66... Rd1+ {[%clk 0:00:17.6]} 67. Ke4 {[%clk 0:00:54]} 67...
Re1+ {[%clk 0:00:18]} 68. Kf5 {[%clk 0:00:54.7]} 68... Rf1+ {[%clk 0:00:18.5]}
69. Ke4 {[%clk 0:00:55.4]} 69... Re1+ {[%clk 0:00:18.9]} 1/2-1/2

[Event "Late-Titled-Tuesday-Blitz-February-06-2024"]
[Site "Chess.com"]
[Date "2024.02.06"]
[Round "7"]
[White "IsaqueGoncalvesSanto"]
[Black "norwaytoadog"]
[Result "0-1"]
[WhiteElo "1922"]
[BlackElo "2226"]
[TimeControl "180+1"]
[EndTime "15:17:54 PST"]
[Termination "norwaytoadog won on time"]

1. d4 {[%clk 0:02:59.6]} 1... Nf6 {[%clk 0:02:58.4]} 2. c4 {[%clk 0:02:58.7]}
2... e6 {[%clk 0:02:58.5]} 3. Nc3 {[%clk 0:02:58.4]} 3... Bb4 {[%clk 0:02:58.4]}
4. e3 {[%clk 0:02:57.5]} 4... O-O {[%clk 0:02:57.9]} 5. Bd3 {[%clk 0:02:57.4]}
5... d5 {[%clk 0:02:58]} 6. Ne2 {[%clk 0:02:56.5]} 6... dxc4 {[%clk 0:02:53.4]}
7. Bxc4 {[%clk 0:02:54.9]} 7... c5 {[%clk 0:02:53.3]} 8. a3 {[%clk 0:02:54.7]}
8... Bxc3+ {[%clk 0:02:52.9]} 9. bxc3 {[%clk 0:02:54.7]} 9... Qc7 {[%clk
0:02:53.2]} 10. Bd3 {[%clk 0:02:49.4]} 10... Nc6 {[%clk 0:02:52.9]} 11. O-O
{[%clk 0:02:45.6]} 11... e5 {[%clk 0:02:53.2]} 12. d5 {[%clk 0:02:37.5]} 12...
Nxd5 {[%clk 0:02:43.4]} 13. Bxh7+ {[%clk 0:02:28.6]} 13... Kxh7 {[%clk
0:02:43.4]} 14. Qxd5 {[%clk 0:02:29]} 14... Be6 {[%clk 0:02:36]} 15. Qxc5 {[%clk
0:02:22.3]} 15... Rad8 {[%clk 0:02:29.7]} 16. Ng3 {[%clk 0:02:06.7]} 16... f5
{[%clk 0:02:20.9]} 17. c4 {[%clk 0:02:03]} 17... Rf7 {[%clk 0:02:06.7]} 18. e4
{[%clk 0:01:52.9]} 18... f4 {[%clk 0:02:01.1]} 19. Ne2 {[%clk 0:01:43.2]} 19...
a6 {[%clk 0:01:54.2]} 20. f3 {[%clk 0:01:42.5]} 20... Rd3 {[%clk 0:01:42.4]} 21.
a4 {[%clk 0:01:24.1]} 21... Qd8 {[%clk 0:01:30.5]} 22. Ba3 {[%clk 0:01:20.8]}
22... Rd2 {[%clk 0:01:20.9]} 23. Bb4 {[%clk 0:01:19.1]} 23... Rxe2 {[%clk
0:01:09.4]} 24. Rfd1 {[%clk 0:01:19]} 24... Qg5 {[%clk 0:01:07.4]} 25. g3 {[%clk
0:01:03.8]} 25... fxg3 {[%clk 0:01:02.5]} 26. Kf1 {[%clk 0:00:45.7]} 26... Rf2+
{[%clk 0:00:59.1]} 27. Ke1 {[%clk 0:00:44.9]} 27... R2xf3 {[%clk 0:00:56.3]} 28.
Qg1 {[%clk 0:00:34.5]} 28... Re3+ {[%clk 0:00:54]} 29. Kd2 {[%clk 0:00:25.9]}
29... Rd7+ {[%clk 0:00:53]} 30. Kc2 {[%clk 0:00:23.2]} 30... Re2+ {[%clk
0:00:52.3]} 31. Kc3 {[%clk 0:00:16.9]} 31... Qe3+ {[%clk 0:00:49.1]} 32. Qxe3
{[%clk 0:00:16.2]} 32... Rxe3+ {[%clk 0:00:49.1]} 33. Kc2 {[%clk 0:00:16.2]}
33... Rxd1 {[%clk 0:00:48.4]} 34. Rxd1 {[%clk 0:00:14.9]} 34... Re2+ {[%clk
0:00:46.9]} 35. Kd3 {[%clk 0:00:14.5]} 35... Nd4 {[%clk 0:00:46.6]} 36. hxg3
{[%clk 0:00:11.9]} 36... Kg6 {[%clk 0:00:46.3]} 37. Rf1 {[%clk 0:00:10.3]} 37...
Rg2 {[%clk 0:00:43.4]} 38. Be1 {[%clk 0:00:09.3]} 38... Rb2 {[%clk 0:00:40.4]}
39. Bf2 {[%clk 0:00:07.9]} 39... Rb3+ {[%clk 0:00:39.7]} 40. Kd2 {[%clk
0:00:07.4]} 40... Bxc4 {[%clk 0:00:38.1]} 41. Bxd4 {[%clk 0:00:06.8]} 41... Bxf1
{[%clk 0:00:38]} 42. Bxe5 {[%clk 0:00:06.4]} 42... Bg2 {[%clk 0:00:37.1]} 43.
Kc2 {[%clk 0:00:04]} 43... Re3 {[%clk 0:00:36.6]} 44. Bf4 {[%clk 0:00:03.6]}
44... Rxe4 {[%clk 0:00:35.4]} 45. Kd3 {[%clk 0:00:02.3]} 45... Rxa4 {[%clk
0:00:35]} 0-1

[Event "Late-Titled-Tuesday-Blitz-February-06-2024"]
[Site "Chess.com"]
[Date "2024.02.06"]
[Round "7"]
[White "Grindaveci"]
[Black "Quaide7"]
[Result "1-0"]
[WhiteElo "2452"]
[BlackElo "2207"]
[TimeControl "180+1"]
[EndTime "15:17:55 PST"]
[Termination "Grindaveci won on time"]

1. e4 {[%clk 0:02:59.9]} 1... e6 {[%clk 0:02:58]} 2. d4 {[%clk 0:02:59.9]} 2...
c5 {[%clk 0:02:58.1]} 3. c3 {[%clk 0:02:58.1]} 3... cxd4 {[%clk 0:02:58.1]} 4.
cxd4 {[%clk 0:02:56.9]} 4... d5 {[%clk 0:02:58.4]} 5. e5 {[%clk 0:02:56.7]} 5...
f6 {[%clk 0:02:58.4]} 6. Nf3 {[%clk 0:02:54.7]} 6... Nc6 {[%clk 0:02:57]} 7. Nc3
{[%clk 0:02:36.1]} 7... fxe5 {[%clk 0:02:54.4]} 8. Nxe5 {[%clk 0:02:35.5]} 8...
Nxe5 {[%clk 0:02:54.1]} 9. dxe5 {[%clk 0:02:36.4]} 9... Bc5 {[%clk 0:02:54.2]}
10. Bd3 {[%clk 0:02:33.8]} 10... Ne7 {[%clk 0:02:53.2]} 11. Qh5+ {[%clk
0:02:31.6]} 11... g6 {[%clk 0:02:53]} 12. Qh6 {[%clk 0:02:31.1]} 12... Qb6
{[%clk 0:02:48.2]} 13. O-O {[%clk 0:02:24.9]} 13... Bd7 {[%clk 0:02:46.5]} 14.
Bg5 {[%clk 0:02:17.3]} 14... O-O-O {[%clk 0:02:45.3]} 15. a3 {[%clk 0:02:12.6]}
15... Kb8 {[%clk 0:02:42.1]} 16. b4 {[%clk 0:02:08.6]} 16... Bd4 {[%clk
0:02:42.3]} 17. Bxe7 {[%clk 0:02:06]} 17... Bxc3 {[%clk 0:02:42.6]} 18. Bxd8
{[%clk 0:02:05.8]} 18... Qxd8 {[%clk 0:02:31.1]} 19. Rac1 {[%clk 0:01:59.8]}
19... Bxe5 {[%clk 0:02:31.1]} 20. Qe3 {[%clk 0:01:52.3]} 20... Bd6 {[%clk
0:02:28.9]} 21. Be2 {[%clk 0:01:50.1]} 21... Rf8 {[%clk 0:02:22.8]} 22. g3
{[%clk 0:01:47.6]} 22... e5 {[%clk 0:02:10.6]} 23. Rfd1 {[%clk 0:01:37.6]} 23...
Be6 {[%clk 0:02:08]} 24. Bf3 {[%clk 0:01:28.7]} 24... e4 {[%clk 0:01:35.2]} 25.
Be2 {[%clk 0:01:27.2]} 25... Qf6 {[%clk 0:01:25.8]} 26. Bc4 {[%clk 0:01:16.4]}
26... Qe5 {[%clk 0:00:51.8]} 27. f4 {[%clk 0:01:10.4]} 27... exf3 {[%clk
0:00:47.7]} 28. Qxe5 {[%clk 0:01:10.6]} 28... Bxe5 {[%clk 0:00:48.3]} 29. Bxd5
{[%clk 0:01:11.2]} 29... f2+ {[%clk 0:00:46.8]} 30. Kg2 {[%clk 0:01:01.4]} 30...
Bg4 {[%clk 0:00:37.4]} 31. Rf1 {[%clk 0:00:57.8]} 31... Bd4 {[%clk 0:00:36.4]}
32. Rc4 {[%clk 0:00:53.8]} 32... Be2 {[%clk 0:00:17.1]} 33. Rxd4 {[%clk
0:00:52.5]} 33... Bxf1+ {[%clk 0:00:17.4]} 34. Kxf1 {[%clk 0:00:53.3]} 34... Kc7
{[%clk 0:00:11.3]} 35. Rf4 {[%clk 0:00:51.7]} 35... Rd8 {[%clk 0:00:09.3]} 36.
Bc4 {[%clk 0:00:48.1]} 36... Rd1+ {[%clk 0:00:06.7]} 37. Kxf2 {[%clk 0:00:47.4]}
37... Rd2+ {[%clk 0:00:07.6]} 38. Be2 {[%clk 0:00:46.4]} 38... Ra2 {[%clk
0:00:07.5]} 39. Rf7+ {[%clk 0:00:45.2]} 39... Kb6 {[%clk 0:00:08.2]} 40. Rf3
{[%clk 0:00:43.9]} 40... Rb2 {[%clk 0:00:07]} 41. Re3 {[%clk 0:00:43.7]} 41...
a5 {[%clk 0:00:06.4]} 42. Re6+ {[%clk 0:00:42.1]} 42... Kc7 {[%clk 0:00:06.2]}
43. b5 {[%clk 0:00:42.1]} 43... Rb3 {[%clk 0:00:06.3]} 44. a4 {[%clk 0:00:42]}
44... Kd7 {[%clk 0:00:04.9]} 45. Rf6 {[%clk 0:00:40.6]} 45... Rb4 {[%clk
0:00:02.4]} 46. Rf7+ {[%clk 0:00:37.9]} 46... Kc8 {[%clk 0:00:02]} 47. Bf3
{[%clk 0:00:28.2]} 47... Rxa4 {[%clk 0:00:01.1]} 48. Bxb7+ {[%clk 0:00:27.9]}
1-0

[Event "Late-Titled-Tuesday-Blitz-February-06-2024"]
[Site "Chess.com"]
[Date "2024.02.06"]
[Round "7"]
[White "Rutricks"]
[Black "sergiochess83"]
[Result "0-1"]
[WhiteElo "2733"]
[BlackElo "2918"]
[TimeControl "180+1"]
[EndTime "15:17:59 PST"]
[Termination "sergiochess83 won by checkmate"]

1. Nc3 {[%clk 0:02:55.5]} 1... d5 {[%clk 0:02:50.6]} 2. d4 {[%clk 0:02:55.5]}
2... Nf6 {[%clk 0:02:50]} 3. Bf4 {[%clk 0:02:54.9]} 3... Bf5 {[%clk 0:02:48.8]}
4. f3 {[%clk 0:02:52.9]} 4... e6 {[%clk 0:02:48]} 5. Qd2 {[%clk 0:02:52.4]} 5...
h6 {[%clk 0:02:35.2]} 6. g4 {[%clk 0:02:21.2]} 6... Bh7 {[%clk 0:02:35.2]} 7.
Nh3 {[%clk 0:02:21.9]} 7... a6 {[%clk 0:02:34.2]} 8. e3 {[%clk 0:02:17.6]} 8...
c5 {[%clk 0:02:28.2]} 9. Bd3 {[%clk 0:01:33.5]} 9... Bxd3 {[%clk 0:02:22.9]} 10.
Qxd3 {[%clk 0:01:34]} 10... Nc6 {[%clk 0:02:23.4]} 11. O-O-O {[%clk 0:01:30.1]}
11... Qa5 {[%clk 0:02:04.9]} 12. a3 {[%clk 0:01:20.8]} 12... c4 {[%clk
0:01:50.9]} 13. Qe2 {[%clk 0:01:21]} 13... Bxa3 {[%clk 0:01:49.4]} 14. Qe1
{[%clk 0:01:07.5]} 14... Bb4 {[%clk 0:01:44.2]} 15. Kd2 {[%clk 0:01:08.1]} 15...
O-O-O {[%clk 0:01:32.7]} 16. g5 {[%clk 0:01:08]} 16... Nh5 {[%clk 0:01:19.7]}
17. Qh4 {[%clk 0:01:07.1]} 17... hxg5 {[%clk 0:01:12.5]} 18. Qxg5 {[%clk
0:01:08]} 18... Be7 {[%clk 0:01:02.9]} 19. Qg4 {[%clk 0:01:04.3]} 19... Qb4
{[%clk 0:00:37.2]} 20. Ra1 {[%clk 0:00:33.6]} 20... g6 {[%clk 0:00:17.3]} 21.
Bg5 {[%clk 0:00:26.5]} 21... Bxg5 {[%clk 0:00:13.5]} 22. Nxg5 {[%clk 0:00:27]}
22... Qe7 {[%clk 0:00:12.6]} 23. Na4 {[%clk 0:00:26.5]} 23... Kb8 {[%clk
0:00:10.2]} 24. Nc5 {[%clk 0:00:26.8]} 24... e5 {[%clk 0:00:10.4]} 25. Rhe1
{[%clk 0:00:13.7]} 25... Ng7 {[%clk 0:00:10.1]} 26. Qg2 {[%clk 0:00:06.9]} 26...
Nf5 {[%clk 0:00:10.2]} 27. c3 {[%clk 0:00:06.7]} 27... exd4 {[%clk 0:00:06.7]}
28. exd4 {[%clk 0:00:06.4]} 28... Qc7 {[%clk 0:00:07]} 29. Rxa6 {[%clk
0:00:04.1]} 29... Rxh2 {[%clk 0:00:05.8]} 30. Rxc6 {[%clk 0:00:01.6]} 30...
Rxg2+ {[%clk 0:00:05.2]} 31. Kc1 {[%clk 0:00:02.3]} 31... Qxc6 {[%clk
0:00:05.8]} 32. Nxf7 {[%clk 0:00:01.9]} 32... Qf6 {[%clk 0:00:05.7]} 33. Ne5
{[%clk 0:00:02.8]} 33... Ka7 {[%clk 0:00:04.5]} 34. Kb1 {[%clk 0:00:02.2]} 34...
Qg5 {[%clk 0:00:04.8]} 35. Ka2 {[%clk 0:00:02.8]} 35... Ne3 {[%clk 0:00:04.8]}
36. Ra1 {[%clk 0:00:03.1]} 36... Rd6 {[%clk 0:00:05]} 37. Kb1+ {[%clk
0:00:03.7]} 37... Ra6 {[%clk 0:00:05.3]} 38. Nxa6 {[%clk 0:00:03.5]} 38... bxa6
{[%clk 0:00:05.5]} 39. Nd7 {[%clk 0:00:03.8]} 39... Qf5+ {[%clk 0:00:05.3]} 40.
Ka2 {[%clk 0:00:04.1]} 40... Rxb2+ {[%clk 0:00:04.9]} 41. Kxb2 {[%clk
0:00:04.6]} 41... Qc2+ {[%clk 0:00:05.5]} 42. Ka3 {[%clk 0:00:05.3]} 42... Qxc3+
{[%clk 0:00:06.1]} 43. Ka2 {[%clk 0:00:05.4]} 43... Qb3# {[%clk 0:00:06.3]} 0-1